bitfinex-derivatives/quotes_SOLF0:USTF0_20241203
["timestamp","ask_amount","ask_price","bid_price","bid_amount"]
[1733231522382,2.4,223.79,223.71,1.11853403]
[1733231522681,2.4,223.79,223.72,1.11853403]
[1733231522883,2.4,223.79,223.73,1.11853403]
[1733231523182,12.62895783,223.77,223.67,2.8038]
[1733231523372,12.62895783,223.77,223.68,5.145118]
[1733231523573,2.2348,223.7,223.69,5.145118]
[1733231523782,12.62895783,223.77,223.69,2.90810399]
[1733231523977,12.62895783,223.77,223.67,1.3989]
[1733231523978,12.62895783,223.77,223.7,2.90810399]
[1733231524181,12.62895783,223.77,223.67,1.3989]
[1733231524182,2.4,223.79,223.71,2.90810399]
[1733231524378,2.4,223.79,223.67,1.68224128]
[1733231524379,12.62895783,223.72,223.67,0.28334128]
[1733231524582,12.62895783,223.68,223.63,0.28334128]
[1733231524781,12.62895783,223.68,223.64,5.14624091]
[1733231524992,12.62895783,223.68,223.65,5.14624091]
[1733231524993,2.2352,223.66,223.65,5.14624091]
[1733231525173,2.2352,223.66,223.65,2.90874486]
[1733231525378,12.62895783,223.68,223.65,2.90907946]
[1733231525578,12.62895783,223.68,223.59,0.28353354]
[1733231525897,12.62895783,223.68,223.6,5.14690518]
[1733231526184,12.62895783,223.68,223.55,2.5714]
[1733231526579,2.2356,223.62,223.54,1.3969]
[1733231526880,14.96895783,223.64,223.54,1.3969]
[1733231527080,2.236,223.58,223.5,2.2367]
[1733231527285,2.236,223.58,223.51,4.2163343]
[1733231527486,2.236,223.58,223.52,1.11905301]
[1733231527681,2.236,223.58,223.53,1.11905301]
[1733231527983,12.62895783,223.69,223.55,12.62895783]
[1733231528178,12.62895783,223.69,223.56,2.34]
[1733231528581,2.2357,223.61,223.56,2.34]
[1733231528985,12.62895783,223.66,223.56,2.34]
[1733231529185,2.2358,223.6,223.56,2.34]
[1733231529385,2.34,223.75,223.57,12.62895783]
[1733231529578,2.34,223.76,223.58,1.1188312]
[1733231529782,2.34,223.76,223.63,12.62895783]
[1733231530082,2.34,223.76,223.64,4.9482]
[1733231531082,2.235,223.68,223.64,4.9482]
[1733231531276,12.62895783,223.74,223.64,4.9482]
[1733231531479,2.235,223.68,223.64,4.9482]
[1733231533187,2.2338,223.8,223.73,2.2344]
[1733231533387,2.5877,223.85,223.74,2.34]
[1733231533588,13.90385783,223.85,223.74,2.34]
[1733231534282,1.2749,223.85,223.74,2.34]
[1733231534687,2.34,223.87,223.74,2.34]
[1733231534887,2.234,223.78,223.74,2.34]
[1733231535084,2.34,223.87,223.74,2.34]
[1733231535486,2.2339,223.79,223.74,2.34]
[1733231536192,2.234,223.78,223.74,2.34]
[1733231537290,3.7005,223.88,223.74,2.34]
[1733231537291,2.2341,223.77,223.74,2.34]
[1733231538397,2.234,223.78,223.74,2.34]
[1733231538595,3.7005,223.88,223.74,2.34]
[1733231538999,2.2341,223.77,223.74,2.34]
[1733231539202,20.26259256,223.85,223.7,2.34]
[1733231539801,2.2345,223.73,223.7,2.34]
[1733231540005,2.34,223.83,223.7,2.34]
[1733231541197,20.26259256,223.81,223.7,2.34]
[1733231541502,20.26259256,223.81,223.65,1.3153]
[1733231541796,20.26259256,223.81,223.68,2.34]
[1733231542001,2.2346,223.72,223.68,2.34]
[1733231542194,20.26259256,223.81,223.68,2.34]
[1733231542396,1.282,223.82,223.68,2.34]
[1733231542599,20.26259256,223.85,223.68,2.34]
[1733231543097,1.282,223.87,223.7,20.26259256]
[1733231543300,20.26259256,223.89,223.7,20.26259256]
[1733231544201,2.2338,223.8,223.7,20.26259256]
[1733231544498,20.26259256,223.89,223.73,2.2345]
[1733231544703,2.7859,223.88,223.74,2.34]
[1733231545203,1.3749,223.88,223.74,2.34]
[1733231546003,2.2338,223.8,223.74,2.34]
[1733231546605,2.7786,223.88,223.74,2.34]
[1733231546801,1.3749,223.88,223.74,2.34]
[1733231547202,2.2339,223.79,223.74,2.34]
[1733231547403,1.4037,223.87,223.74,2.34]
[1733231547603,1.3749,223.88,223.75,20.26259256]
[1733231547805,2.2334,223.84,223.78,2.2339]
[1733231548007,2.2334,223.84,223.79,2.34]
[1733231548205,1.3749,223.88,223.79,2.34]
[1733231548397,1.3749,223.88,223.79,22.60259256]
[1733231548810,45.82621376,223.93,223.79,22.60259256]
[1733231548999,45.82621376,223.93,223.82,2.2335]
[1733231549000,2.2331,223.87,223.82,2.2335]
[1733231549305,45.82621376,223.93,223.79,22.60259256]
[1733231549502,2.2332,223.86,223.81,2.2336]
[1733231549802,45.82621376,223.93,223.81,2.34]
[1733231550300,2.34,223.92,223.75,20.26259256]
[1733231550506,2.34,223.92,223.76,2.34]
[1733231551703,2.2338,223.8,223.77,2.34]
[1733231551904,20.26259256,223.89,223.77,2.34]
[1733231552407,2.2339,223.79,223.77,2.34]
[1733231552605,20.26259256,223.89,223.77,2.34]
[1733231552810,20.26259256,223.89,223.71,20.26259256]
[1733231553104,2.2341,223.77,223.72,2.44]
[1733231553509,2.2342,223.76,223.72,2.44]
[1733231554105,2.44,223.85,223.72,2.44]
[1733231555407,2.2344,223.74,223.72,2.44]
[1733231555606,22.70259256,223.85,223.72,2.44]
[1733231555803,2.2345,223.73,223.72,2.44]
[1733231556708,2.2336,223.82,223.72,2.44]
[1733231557012,22.70259256,223.85,223.72,2.44]
[1733231557609,12.66669631,223.84,223.72,2.44]
[1733231558909,2.2341,223.77,223.72,2.44]
[1733231560203,2.2342,223.76,223.72,2.44]
[1733231561006,13.97169631,223.84,223.72,4.6745]
[1733231561207,1.305,223.84,223.72,15.10669631]
[1733231561704,1.305,223.84,223.72,17.34119631]
[1733231562806,2.2337,223.81,223.72,17.34119631]
[1733231563008,1.305,223.84,223.72,17.34119631]
[1733231563304,1.305,223.84,223.72,15.10669631]
[1733231564208,2.2341,223.77,223.72,15.10669631]
[1733231564507,13.97169631,223.84,223.73,2.44]
[1733231565110,2.2343,223.75,223.73,2.44]
[1733231565508,13.97169631,223.84,223.73,2.44]
[1733231566109,2.44,223.83,223.73,2.44]
[1733231566312,2.2344,223.74,223.73,2.44]
[1733231566813,2.2345,223.73,223.7,2.44]
[1733231567406,2.2346,223.72,223.7,2.44]
[1733231567609,12.66669631,223.81,223.7,2.44]
[1733231568004,12.66669631,223.81,223.68,0.22814]
[1733231568211,2.2346,223.72,223.68,2.66814]
[1733231568715,1.3671,223.8,223.68,2.66814]
[1733231569312,2.44,223.83,223.69,12.66669631]
[1733231569616,13.97169631,223.84,223.69,12.66669631]
[1733231570412,2.2341,223.77,223.69,12.66669631]
[1733231570819,13.97169631,223.84,223.69,12.66669631]
[1733231571017,13.97169631,223.84,223.69,14.90149631]
[1733231571018,2.2342,223.76,223.69,14.90149631]
[1733231571221,13.97169631,223.84,223.69,14.90149631]
[1733231571422,12.66669631,223.81,223.69,1.2807]
[1733231571623,15.10669631,223.81,223.69,1.2807]
[1733231571922,2.2344,223.74,223.69,1.2807]
[1733231572124,15.10669631,223.81,223.69,1.2807]
[1733231574425,1.3586,223.8,223.69,1.2807]
[1733231574625,2.2347,223.71,223.69,1.2807]
[1733231575326,2.2347,223.71,223.68,2.66814]
[1733231575529,2.2347,223.71,223.68,2.44]
[1733231578030,2.2348,223.7,223.68,2.44]
[1733231579631,2.2349,223.69,223.68,2.44]
[1733231580331,1.3586,223.8,223.68,2.44]
[1733231580529,12.66669631,223.82,223.68,15.10669631]
[1733231581031,12.66669631,223.82,223.69,2.2348]
[1733231581236,12.66669631,223.82,223.68,15.10669631]
[1733231581540,1.305,223.84,223.71,12.66669631]
[1733231581831,1.305,223.84,223.71,14.90129631]
[1733231581832,2.2342,223.76,223.71,14.90129631]
[1733231582529,196.20030185,224.02,223.75,12.66669631]
[1733231582732,2.34,223.91,223.8,12.66669631]
[1733231582931,2.34,223.91,223.81,2.34]
[1733231584233,15.00669631,223.91,223.81,2.34]
[1733231585433,2.233,223.88,223.81,2.34]
[1733231585636,15.00669631,223.91,223.81,2.34]
[1733231587035,12.66669631,223.91,223.81,2.34]
[1733231587429,2.34,223.93,223.81,2.34]
[1733231587841,2.2333,223.85,223.81,2.34]
[1733231588433,2.34,223.93,223.81,2.34]
[1733231589735,2.2334,223.84,223.81,2.34]
[1733231590243,2.2336,223.82,223.81,2.34]
[1733231590440,12.66669631,223.91,223.81,2.34]
[1733231590836,2.2335,223.83,223.81,2.34]
[1733231591037,12.66669631,223.91,223.81,2.34]
[1733231591741,2.2336,223.82,223.81,2.34]
[1733231593046,2.233,223.88,223.81,2.34]
[1733231593341,12.66669631,223.91,223.81,2.34]
[1733231593542,2.2328,223.9,223.81,2.34]
[1733231593745,12.66669631,223.91,223.81,2.34]
[1733231594840,5.0612,223.95,223.81,2.34]
[1733231595041,12.66669631,223.93,223.81,2.34]
[1733231596548,2.2333,223.86,223.81,2.34]
[1733231596748,12.66669631,223.93,223.81,2.34]
[1733231597344,2.2333,223.85,223.81,2.34]
[1733231598340,2.2332,223.86,223.81,2.34]
[1733231598545,12.66669631,223.93,223.81,2.34]
[1733231598949,2.2333,223.85,223.81,2.34]
[1733231599147,12.66669631,223.9,223.81,2.34]
[1733231599348,12.66669631,223.9,223.79,2.34]
[1733231600151,2.2336,223.82,223.79,2.34]
[1733231601552,2.2338,223.8,223.79,2.34]
[1733231603553,2.2338,223.8,223.76,2.6606]
[1733231603554,2.2339,223.79,223.76,2.6606]
[1733231603747,2.2339,223.79,223.77,2.34]
[1733231605648,15.00669631,223.9,223.77,2.34]
[1733231605957,15.00669631,223.9,223.77,15.00669631]
[1733231606254,2.2336,223.82,223.77,17.24079631]
[1733231607655,15.00669631,223.9,223.77,15.00669631]
[1733231608454,2.2338,223.8,223.77,15.00669631]
[1733231608657,15.00669631,223.9,223.77,17.24069631]
[1733231608858,15.00669631,223.9,223.77,4.574]
[1733231609158,2.2338,223.8,223.77,2.34]
[1733231609359,15.00669631,223.9,223.77,2.34]
[1733231610256,2.2338,223.81,223.77,2.34]
[1733231610954,2.2338,223.8,223.77,2.34]
[1733231611258,15.00669631,223.9,223.77,4.5741]
[1733231611462,2.2336,223.82,223.77,4.5741]
[1733231612456,15.00669631,223.9,223.77,4.5741]
[1733231612960,2.2332,223.86,223.78,2.26]
[1733231613159,15.00669631,223.9,223.78,2.26]
[1733231613659,2.2335,223.83,223.78,2.26]
[1733231614262,2.2333,223.85,223.78,2.26]
[1733231614560,15.00669631,223.9,223.78,2.26]
[1733231614754,15.00669631,223.9,223.79,2.2338]
[1733231614951,2.2333,223.85,223.78,2.26]
[1733231615260,2.2333,223.85,223.8,2.2338]
[1733231615659,8.10117446,223.88,223.8,8.10117446]
[1733231616352,2.2333,223.85,223.8,8.10117446]
[1733231618454,2.2334,223.84,223.8,8.10117446]
[1733231619755,8.10117446,223.88,223.81,2.26]
[1733231620462,2.2334,223.84,223.81,2.26]
[1733231621165,8.10117446,223.84,223.77,3.979]
[1733231621356,8.10117446,223.84,223.77,6.239]
[1733231621553,8.10117446,223.86,223.8,8.10117446]
[1733231622261,2.2333,223.85,223.8,8.10117446]
[1733231622453,8.10117446,223.86,223.8,8.10117446]
[1733231622859,8.10117446,223.86,223.77,6.239]
[1733231623062,8.10117446,223.86,223.79,8.10117446]
[1733231623561,2.2337,223.82,223.79,8.10117446]
[1733231623952,2.2337,223.82,223.77,6.239]
[1733231624161,4.465,223.93,223.77,6.239]
[1733231624162,8.10117446,223.84,223.77,10.36117446]
[1733231624362,8.10117446,223.86,223.79,8.10117446]
[1733231624663,2.26,223.89,223.79,8.10117446]
[1733231624856,8.10117446,223.85,223.77,2.26]
[1733231625053,8.10117446,223.85,223.78,2.26]
[1733231625256,8.10117446,223.85,223.78,10.36117446]
[1733231625863,8.10117446,223.85,223.78,2.26]
[1733231626354,2.2338,223.81,223.78,2.26]
[1733231627660,2.2338,223.8,223.78,2.26]
[1733231628162,8.10117446,223.85,223.78,2.26]
[1733231628861,2.2338,223.8,223.78,2.26]
[1733231629965,2.2335,223.83,223.78,2.26]
[1733231630161,8.10117446,223.85,223.78,2.26]
[1733231631356,8.10117446,223.81,223.68,0.28547]
[1733231631560,1.2893,223.88,223.75,8.10117446]
[1733231631757,1.2893,223.88,223.77,8.10117446]
[1733231631965,2.2337,223.81,223.77,8.10117446]
[1733231632868,8.10117446,223.85,223.79,8.10117446]
[1733231633164,8.10117446,223.83,223.76,2.26]
[1733231633362,8.10117446,223.83,223.76,10.36117446]
[1733231633565,2.2338,223.8,223.74,2.2343]
[1733231633762,2.2338,223.8,223.76,8.10117446]
[1733231633964,2.2337,223.81,223.77,2.26]
[1733231634469,2.2335,223.83,223.77,4.494]
[1733231634667,8.10117446,223.85,223.78,8.10117446]
[1733231635267,8.10117446,223.86,223.78,10.33507446]
[1733231636266,2.2334,223.84,223.79,2.2339]
[1733231636465,8.10117446,223.86,223.79,2.2339]
[1733231636968,2.2334,223.85,223.79,2.2339]
[1733231637159,8.10117446,223.86,223.79,2.2339]
[1733231637971,2.2333,223.85,223.79,2.2339]
[1733231638172,2.26,223.93,223.8,8.10117446]
[1733231638471,2.2328,223.9,223.84,8.10117446]
[1733231638771,2.2328,223.9,223.85,2.26]
[1733231639561,47.18434934,223.98,223.89,8.10117446]
[1733231639767,47.18434934,223.98,223.9,2.26]
[1733231639768,8.10117446,223.95,223.9,2.26]
[1733231640269,1.3744,223.98,223.9,2.26]
[1733231640470,8.10117446,223.95,223.9,2.26]
[1733231640674,8.10117446,223.93,223.9,2.26]
[1733231640872,8.10117446,223.91,223.87,2.26]
[1733231641170,8.10117446,223.91,223.87,2.22]
[1733231641371,8.10117446,223.93,223.87,2.22]
[1733231642170,2.2326,223.92,223.87,2.22]
[1733231642371,8.10117446,223.94,223.87,10.32117446]
[1733231642872,2.2325,223.93,223.87,12.55427446]
[1733231643077,8.10117446,223.95,223.87,10.32117446]
[1733231643568,10.33347446,223.95,223.87,10.32117446]
[1733231643971,8.10117446,223.93,223.87,10.32117446]
[1733231644174,8.10117446,223.93,223.87,2.22]
[1733231645375,8.10117446,223.91,223.87,2.22]
[1733231645868,8.10117446,223.89,223.78,4.0652]
[1733231646074,8.10117446,223.89,223.82,8.10117446]
[1733231646372,2.2332,223.86,223.82,8.10117446]
[1733231647366,2.2333,223.85,223.82,8.10117446]
[1733231648474,2.2334,223.84,223.79,4.4338]
[1733231648673,2.2334,223.84,223.81,8.10117446]
[1733231649877,8.10117446,223.87,223.81,8.10117446]
[1733231650076,2.2333,223.85,223.81,8.10117446]
[1733231650675,2.2334,223.84,223.81,8.10117446]
[1733231651773,2.2334,223.84,223.79,12.53507446]
[1733231652682,8.10117446,223.85,223.78,1.3329]
[1733231652874,8.10117446,223.83,223.78,2.2]
[1733231653380,2.2339,223.8,223.78,2.2]
[1733231655671,2.2341,223.77,223.7,3.9422]
[1733231655875,8.10117446,223.81,223.73,8.10117446]
[1733231656173,2.2338,223.8,223.75,8.10117446]
[1733231656372,8.10117446,223.82,223.75,8.10117446]
[1733231657182,8.10117446,223.82,223.74,2.22]
[1733231657483,8.10117446,223.82,223.74,10.32117446]
[1733231657886,2.2339,223.79,223.74,2.22]
[1733231658285,2.2339,223.79,223.75,8.10117446]
[1733231659084,2.234,223.78,223.75,8.10117446]
[1733231660386,2.234,223.78,223.74,2.22]
[1733231662385,2.2341,223.77,223.74,2.22]
[1733231662593,8.10117446,223.79,223.72,2.22]
[1733231662987,2.2343,223.75,223.72,2.22]
[1733231664086,4.0477,223.86,223.71,2.22]
[1733231664087,8.10117446,223.77,223.71,2.22]
[1733231665093,2.2345,223.73,223.71,2.22]
[1733231666195,2.2345,223.73,223.69,8.37521446]
[1733231666391,2.2345,223.73,223.69,10.59521446]
[1733231667295,2.2346,223.73,223.69,2.49404]
[1733231667495,2.2346,223.73,223.69,10.59521446]
[1733231668287,2.2346,223.72,223.69,10.59521446]
[1733231668691,8.10117446,223.77,223.69,10.59521446]
[1733231668891,2.2345,223.73,223.69,10.59521446]
[1733231670700,2.2347,223.71,223.69,2.49404]
[1733231670900,8.10117446,223.75,223.69,2.49404]
[1733231671108,8.10117446,223.73,223.69,2.49404]
[1733231672102,2.2347,223.72,223.69,2.49404]
[1733231674201,2.2348,223.7,223.69,2.49404]
[1733231674496,2.22,223.81,223.69,10.59521446]
[1733231674497,8.10117446,223.76,223.69,10.59521446]
[1733231674704,8.10117446,223.76,223.69,0.27404]
[1733231674898,8.10117446,223.76,223.7,10.28117446]
[1733231675103,8.10117446,223.78,223.72,8.10117446]
[1733231675500,10.33547446,223.76,223.69,0.27404]
[1733231675704,10.33547446,223.76,223.73,2.18]
[1733231676795,2.2346,223.72,223.71,2.18]
[1733231676997,8.10117446,223.76,223.71,2.18]
[1733231677903,2.2345,223.74,223.71,2.18]
[1733231678700,8.10117446,223.76,223.71,2.18]
[1733231679003,2.2345,223.73,223.71,2.18]
[1733231679198,8.10117446,223.74,223.67,2.18]
[1733231679395,2.2347,223.72,223.67,10.28117446]
[1733231679597,8.10117446,223.76,223.69,8.10117446]
[1733231680404,2.2344,223.74,223.69,8.10117446]
[1733231680605,8.10117446,223.76,223.69,8.10117446]
[1733231681202,8.10117446,223.74,223.67,2.18]
[1733231681701,8.10117446,223.74,223.68,8.10117446]
[1733231682206,8.10117446,223.77,223.7,8.10117446]
[1733231682799,2.2343,223.75,223.72,8.10117446]
[1733231682999,8.10117446,223.79,223.72,10.28117446]
[1733231683199,45.8391662,223.82,223.72,10.28117446]
[1733231683403,2.18,223.88,223.74,8.10117446]
[1733231683606,8.10117446,223.81,223.74,8.10117446]
[1733231684109,2.18,223.88,223.74,8.10117446]
[1733231684305,48.00818478,223.89,223.76,8.10117446]
[1733231684502,45.82818478,223.89,223.78,8.10117446]
[1733231684707,2.2333,223.85,223.78,10.33507446]
[1733231684903,8.10117446,223.85,223.78,10.33507446]
[1733231685103,4.1632,223.91,223.8,8.10117446]
[1733231685104,1.404,223.91,223.8,8.10117446]
[1733231685303,8.10117446,223.89,223.83,2.2334]
[1733231685501,8.10117446,223.89,223.84,2.18]
[1733231685701,8.10117446,223.87,223.84,2.18]
[1733231685905,2.2332,223.86,223.84,2.18]
[1733231686308,1.3678,224.02,223.84,10.28117446]
[1733231686605,8.10117446,223.96,223.91,2.2326]
[1733231686801,1.401,224.05,223.92,10.28117446]
[1733231687001,305.87183113,224.06,223.93,2.18]
[1733231687206,8.10117446,224.0,223.94,2.2323]
[1733231687706,8.10117446,224.02,223.95,2.2323]
[1733231687910,8.10117446,224.02,223.96,8.10117446]
[1733231688105,3.9981,224.08,223.96,8.10117446]
[1733231688311,8.10117446,224.04,223.96,8.10117446]
[1733231688707,3.9981,224.08,223.96,8.10117446]
[1733231688909,8.10117446,224.04,223.98,8.10117446]
[1733231689213,8.10117446,224.04,223.99,2.18]
[1733231689810,308.05183113,224.14,223.99,2.18]
[1733231689811,10.33237446,224.06,223.99,2.18]
[1733231690006,8.10117446,224.08,224.02,8.10117446]
[1733231690812,2.2312,224.06,224.0,8.10117446]
[1733231692611,2.2313,224.05,224.0,8.10117446]
[1733231692912,8.10117446,224.03,223.86,1.11706158]
[1733231693110,8.10117446,224.03,223.95,8.10117446]
[1733231693308,8.10117446,224.03,223.96,2.18]
[1733231693706,2.2318,224.0,223.97,8.10117446]
[1733231695813,8.10117446,224.03,223.97,8.10117446]
[1733231696209,2.2319,223.99,223.97,8.10117446]
[1733231696613,4.0167,224.1,223.97,8.10117446]
[1733231696614,8.10117446,224.05,223.97,8.10117446]
[1733231696804,2.2318,224.0,223.97,8.10117446]
[1733231697313,8.10117446,224.05,223.97,8.10117446]
[1733231700207,8.10117446,224.07,224.01,8.10117446]
[1733231700516,8.10117446,224.09,224.02,2.18]
[1733231701010,8.10117446,224.09,224.02,10.28117446]
[1733231701216,2.18,224.15,224.02,10.28117446]
[1733231701217,2.2313,224.05,224.02,10.28117446]
[1733231701414,2.18,224.15,224.02,10.28117446]
[1733231701617,8.10117446,224.11,224.04,8.10117446]
[1733231702006,8.10117446,224.11,224.02,2.18]
[1733231702211,8.10117446,224.09,224.03,8.10117446]
[1733231702420,2.2311,224.08,224.03,8.10117446]
[1733231702614,8.10117446,224.1,224.03,8.10117446]
[1733231703520,8.10117446,224.12,224.05,8.10117446]
[1733231704117,2.231,224.08,224.05,8.10117446]
[1733231704512,8.10117446,224.12,224.05,8.10117446]
[1733231704711,43.99341678,224.17,224.07,8.10117446]
[1733231704912,8.10117446,224.15,224.08,2.18]
[1733231705412,2.2308,224.11,224.08,2.18]
[1733231706412,8.10117446,224.13,224.08,2.18]
[1733231706619,6.1068,224.2,224.04,2.18]
[1733231706620,8.10117446,224.09,224.04,2.18]
[1733231706917,8.10117446,224.05,223.99,2.18]
[1733231707116,2.2316,224.02,223.99,2.18]
[1733231707416,2.2316,224.02,224.0,8.10117446]
[1733231707916,43.98719696,224.19,224.0,8.10117446]
[1733231708115,8.10117446,224.17,224.11,8.10117446]
[1733231708312,8.10117446,224.18,224.11,5.63891387]
[1733231708518,1.2765,224.2,224.1,2.18]
[1733231708813,8.10117446,224.17,224.1,10.28117446]
[1733231709820,2.2307,224.12,224.1,10.28117446]
[1733231710518,8.10117446,224.11,224.05,2.18]
[1733231711516,2.2314,224.04,223.99,12.63397416]
[1733231711717,2.2314,224.04,224.0,2.18]
[1733231712126,2.2313,224.05,224.0,2.18]
[1733231712416,1.3171,224.12,224.0,2.18]
[1733231712619,2.231,224.08,224.02,12.63397416]
[1733231712824,1.3171,224.12,224.02,12.63397416]
[1733231713226,2.231,224.09,224.02,12.63397416]
[1733231713724,2.231,224.08,224.02,12.63397416]
[1733231714222,1.3171,224.12,224.03,2.2314]
[1733231714424,1.3171,224.12,224.02,12.63397416]
[1733231714620,12.63397416,224.16,224.04,2.2314]
[1733231714821,1.341,224.18,224.05,14.81397416]
[1733231715017,1.341,224.18,224.06,2.18]
[1733231715419,12.63397416,224.16,224.02,12.63397416]
[1733231715624,12.63397416,224.16,224.03,2.18]
[1733231715927,12.63397416,224.1,223.98,1.285]
[1733231716131,1.341,224.09,223.99,14.81397416]
[1733231716520,2.2315,224.03,223.99,14.81397416]
[1733231716722,1.341,224.09,223.99,14.81397416]
[1733231717022,1.341,224.09,223.97,1.34]
[1733231717327,1.341,224.09,223.96,2.18]
[1733231717328,12.63397416,224.07,223.96,2.18]
[1733231717821,1.2746,224.08,223.96,2.18]
[1733231718028,1.2746,224.08,223.98,12.63397416]
[1733231718328,1.2746,224.08,223.96,2.18]
[1733231718619,1.2746,224.08,223.95,12.63397416]
[1733231718620,12.63397416,224.07,223.95,12.63397416]
[1733231719427,1.2746,224.08,223.97,2.18]
[1733231719618,2.2315,224.03,223.97,2.18]
[1733231720027,2.2315,224.03,223.98,12.63397416]
[1733231720223,1.2746,224.08,223.98,12.63397416]
[1733231720427,2.2318,224.01,223.98,12.63397416]
[1733231720828,2.2319,223.99,223.97,2.18]
[1733231721026,13.90857416,224.08,223.97,2.18]
[1733231721624,2.232,223.99,223.97,2.18]
[1733231721830,13.90857416,224.08,223.97,2.18]
[1733231722226,2.232,223.98,223.97,2.18]
[1733231722730,12.63397416,224.05,223.92,12.63397416]
[1733231722928,2.2324,223.94,223.93,2.18]
[1733231723128,2.2324,223.94,223.92,12.63397416]
[1733231723330,2.2324,223.94,223.93,2.18]
[1733231723935,12.63397416,224.05,223.93,2.18]
[1733231724233,2.2323,223.95,223.93,2.18]
[1733231725735,2.2324,223.94,223.93,2.18]
[1733231726033,12.63397416,224.05,223.93,2.18]
[1733231726228,2.2324,223.95,223.93,2.18]
[1733231726729,12.63397416,224.05,223.93,2.18]
[1733231726933,12.63397416,224.02,223.92,2.18]
[1733231727236,12.63397416,223.99,223.88,2.18]
[1733231727434,12.63397416,223.99,223.89,1.11743894]
[1733231727435,1.2877,223.98,223.89,1.11743894]
[1733231727634,1.2877,223.98,223.9,1.11743894]
[1733231727928,1.2877,223.98,223.88,2.18]
[1733231728128,12.63397416,223.96,223.82,15.31027416]
[1733231728347,12.63397416,223.96,223.83,3.29753374]
[1733231728536,12.63397416,223.96,223.84,2.90558772]
[1733231728740,12.63397416,223.96,223.83,2.18]
[1733231728939,2.2325,223.93,223.84,1.11779336]
[1733231729244,12.63397416,223.96,223.85,1.11782163]
[1733231729443,2.2332,223.86,223.83,14.81397416]
[1733231729638,2.2332,223.86,223.84,1.11775292]
[1733231729951,12.63397416,223.96,223.85,1.11775292]
[1733231730140,12.63397416,223.96,223.83,14.81397416]
[1733231730338,12.63397416,223.96,223.84,1.11784073]
[1733231730540,12.63397416,223.96,223.85,1.1178132]
[1733231730541,2.2331,223.87,223.85,1.1178132]
[1733231730739,2.2331,223.87,223.83,14.81397416]
[1733231730943,12.63397416,223.96,223.84,1.11779327]
[1733231731144,12.63397416,223.96,223.85,1.11779327]
[1733231731350,12.63397416,223.96,223.83,14.81397416]
[1733231731543,12.63397416,223.96,223.83,2.18]
[1733231732443,2.2332,223.86,223.83,2.18]
[1733231732641,2.2,223.95,223.82,2.6763]
[1733231732841,12.63397416,223.93,223.83,2.2]
[1733231734943,1.3448,223.92,223.79,2.2]
[1733231735344,12.63397416,223.9,223.79,2.2]
[1733231735553,2.2337,223.81,223.79,2.2]
[1733231735849,12.63397416,223.9,223.79,2.2]
[1733231736051,12.63397416,223.9,223.76,1.3179]
[1733231736052,2.2338,223.8,223.77,2.2]
[1733231736646,12.63397416,223.87,223.77,2.2]
[1733231736647,2.2337,223.81,223.77,2.2]
[1733231736845,12.63397416,223.87,223.78,2.2]
[1733231737243,1.3097,223.89,223.78,2.2]
[1733231737650,2.2337,223.81,223.78,2.2]
[1733231737855,1.3097,223.89,223.78,2.2]
[1733231738549,12.63397416,223.93,223.78,2.2]
[1733231738753,12.63397416,223.93,223.79,1.3751]
[1733231738947,2.2329,223.89,223.82,2.2335]
[1733231739147,13.99837416,223.96,223.83,2.2]
[1733231739947,12.63397416,223.93,223.83,2.2]
[1733231741359,2.2328,223.9,223.83,2.2]
[1733231741658,12.63397416,223.93,223.83,2.2]
[1733231741856,2.2328,223.9,223.83,2.2]
[1733231742056,12.63397416,223.93,223.83,2.2]
[1733231742556,12.63397416,223.93,223.83,4.4334]
[1733231742757,12.63397416,223.93,223.83,2.2]